Cogmind - Beta 13 @@@ ROGUE MODE // 2024.04.04 @ 09:00:48 Player: Redman9012 Result: Destroyed by RT-UI1(R) with Subdweller Machine Gun Performance ------------- Evolutions (0) 0 Regions Visited (2) 400 Robots Destroyed (16) 80 Value Destroyed (378) 378 Prototype IDs (6) 120 Alien Tech Used (0) 0 Bonus (0) 0 TOTAL SCORE: 978 Bonus ------- None Cogmind --------- Core Integrity 0/250 Matter 296/300 Energy 99/100 System Corruption 2% Temperature Cool (6) Movement Core (750) Ox14 Location -10/Subcaves Parts ------- > --- POWER (1) -------- (None) > --- PROPULSION (2) --- (None) > --- UTILITY (2) ------ High-capacity Storage Unit Sensor Array > --- WEAPON (2) ------- Subdweller Machine Gun > --- INVENTORY (20) --- Ion Engine Disposable Heat Sink Visual Processing Unit Subdweller Optics Signal Interpreter Signal Interpreter Targeting Computer Targeting Computer Targeting Computer ECM Suite Core Shielding Core Shielding Core Shielding Power Shielding Power Shielding Scrap Shield Scrap Shield Fragment (48) Scrap Shield Fragment (47) Scrap Shield Fragment (45) Peak State ------------ > --- POWER ------------ Light Ion Engine > --- PROPULSION ------- Light Treads Light Treads > --- UTILITY ---------- High-capacity Storage Unit Sensor Array > --- WEAPON ----------- Particle Gun Subdweller Machine Gun > --- INVENTORY -------- Ion Engine Visual Processing Unit Signal Interpreter Signal Interpreter Targeting Computer Targeting Computer Targeting Computer ECM Suite Core Shielding Core Shielding Core Shielding Power Shielding Power Shielding Scrap Shield Small Laser Assault Rifle Scrap Shield Fragment Scrap Shield Fragment Scrap Shield Fragment [Rating: 11] Favorites ----------- Power Ion Engine Engine Ion Engine Propulsion Light Treads Treads Light Treads Leg Aluminum Leg Wheel Compact Wheel Utility Sensor Array Device Sensor Array Storage Large Storage Unit Weapon Small Laser Energy Gun Small Laser Ballistic Gun Assault Rifle Build | -11 -10 -10 ------- Run | Yrd Mat Sub Slots Evolved . | . . . Power . | . . . Propulsion . | . . . Utility . | . . . Weapon . | . . . Parts Attached 19 | 10 7 2 Power 2 | 1 1 . Engine 2 | 1 1 . Core . | . . . Reactor . | . . . Propulsion 7 | 6 1 . Treads 3 | 2 1 . Leg 2 | 2 . . Wheel 2 | 2 . . Hover . | . . . Flight . | . . . Utility 5 | 1 4 . Device 1 | . 1 . Storage 4 | 1 3 . Processor . | . . . Hackware . | . . . Protection . | . . . Artifact . | . . . Weapon 5 | 2 1 2 Energy Gun 3 | 1 1 1 Energy Cannon . | . . . Ballistic Gun 2 | 1 . 1 Ballistic Cannon . | . . . Launcher . | . . . Special Weapon . | . . . Impact Weapon . | . . . Slashing Weapon . | . . . Piercing Weapon . | . . . Special Melee Weapon . | . . . Unidentified Prototypes . | . . . Parts Lost 5 | . 1 4 Power 2 | . 1 1 Propulsion 2 | . . 2 Utility . | . . . Weapon 1 | . . 1 Highest Loss Streak 4 | . 1 4 To Critical Strikes . | . . . Average Slot Usage (%) 96 | . 96 98 Engine 11 | . 11 13 Treads 27 | . 28 26 Device 13 | . 12 14 Storage 14 | . 14 14 Energy Gun 14 | . 14 14 Ballistic Gun 14 | . 14 14 Naked Turns . | . . . Heaviest Build 51 | 13 47 51 Greatest Support 40 | 40 40 40 Greatest Overweight (x) 4 | 4 1 1 Average Overweight (x) . | . . 1 Largest Inventory Capacity 20 | 8 20 20 Average Capacity 14 | 7 14 20 Most Carried 20 | 7 16 20 Average Carried 11 | 2 11 19 Final Capacity 20 | 8 20 20 Final Carried 20 | 2 16 20 Class Distribution -------------------- 100% | Mutant Dominant Class ---------------- Mutant | -10/Materials Mutant | -10/Subcaves Resources | -11 -10 -10 ----------- Run | Yrd Mat Sub Matter Collected 575 | 226 313 36 Remotely . | . . . Salvage Created 422 | . 396 26 Parts 25 | . 24 1 Haulers Intercepted . | . . . Recyclers Shooed . | . . . Parts Field Recycled . | . . . Retrieved Matter . | . . . Parts Self-Destructed 3 | . . 3 Prevented . | . . . Kills | -11 -10 -10 ------- Run | Yrd Mat Sub Combat Hostiles Destroyed 10 | . 9 1 Guns 10 | . 9 1 Classes Destroyed 7 | . 6 1 Worker 1 | . 1 . Mechanic 1 | . 1 . Operator 1 | . 1 . Watcher 3 | . 3 . Swarmer 3 | . 3 . Grunt 6 | . 6 . Subdweller 1 | . . 1 Best Kill Streak 4 | . 4 1 Combat Bots Only 3 | . 3 1 Max Kills in Single Turn 1 | . 1 1 Gunslinging . | . . . Exploded . | . . . Melee . | . . . Uniques/NPCs Destroyed . | . . . Combat | -11 -10 -10 -------- Run | Yrd Mat Sub Hostile Shots Fired 88 | . 49 39 Missed 27 | . 17 10 Damage Taken 1121 | . 501 620 Core 258 | . 107 151 Absorbed by Shields . | . . . Core Remaining (%) 100 | 100 . . Volleys Fired 54 | . 50 4 Largest 2 | . 2 2 Hottest 95 | . 60 95 Shots Fired 102 | . 96 6 Gun 102 | . 96 6 Cannon . | . . . Launcher . | . . . Special . | . . . Kinetic 54 | . 50 4 Thermal 48 | . 46 2 Explosive . | . . . Electromagnetic . | . . . Robot Hit Streak 7 | . 7 4 Robot Miss Streak 3 | . 3 1 Penetration Max . | . . . Secondary Targets 3 | . 3 . Max Gunslinging Chain 1 | . 1 . Shots Hit Robots 63 | . 59 4 Core Hits 25 | . 23 2 Critical Kills . | . . . Critical Parts Destroyed . | . . . Critical Strikes . | . . . Melee Attacks . | . . . Impact . | . . . Slashing . | . . . Piercing . | . . . Sneak Attacks . | . . . Combat Hostiles . | . . . Follow-up Attacks . | . . . Damage Inflicted 843 | . 744 99 Guns 834 | . 735 99 Cannons . | . . . Explosions . | . . . Melee . | . . . Ramming 9 | . 9 . Kinetic 438 | . 371 67 Thermal 396 | . 364 32 Explosive . | . . . Electromagnetic . | . . . Impact . | . . . Slashing . | . . . Piercing . | . . . Highest Corruption 2 | . 2 2 Average Corruption 1 | . 1 2 Corruption Purged . | . . . Corruption Blocked . | . . . Effects 17 | . 13 4 Message Errors 3 | . 2 1 Matter Fused 6 | . 4 2 Heat Flow Errors 2 | . 2 . Energy Discharges 1 | . 1 . Data Loss (minor) 4 | . 3 1 Data Loss (major) 1 | . 1 . Overload Shots . | . . . Overflow Damage . | . . . Projectiles . | . . . Explosions . | . . . Melee . | . . . Knockbacks . | . . . Impact . | . . . Kinetic . | . . . Secondary . | . . . Self-Inflicted Damage . | . . . Shots . | . . . Rammed 1 | . 1 . Targets Rammed 2 | . 2 . Kicked . | . . . Crushed 1 | . 1 . Highest Temperature 256 | . 256 15 Average Temperature 53 | . 54 13 Received Heat Transfer 318 | . 201 117 Siege Activations . | . . . Robots Corrupted . | . . . Combat Hostiles . | . . . Parts Fried . | . . . Impact Corruptions . | . . . Robots Melted . | . . . Combat Hostiles . | . . . Parts Melted 1 | . 1 . Heat Transferred 899 | . 825 74 Parts Sabotaged . | . . . Parts Stolen . | . . . Parts Stripped . | . . . Power Chain Reactions . | . . . Alert | -11 -10 -10 ------- Run | Yrd Mat Sub Peak Influence 185 | . 185 . Initial . | . . . Average 32 | . 33 . Maximum Alert Level . | . . . Low Security (%) 100 | 100 100 . Level 1 . | . . . Level 2 . | . . . Level 3 . | . . . Level 4 . | . . . Level 5 . | . . . High Security . | . . . Max Security . | . . . Squads Dispatched 1 | . 1 . Investigation . | . . . Extermination . | . . . Reinforcement 1 | . 1 . Assault . | . . . Garrison . | . . . Intercept . | . . . Searches Triggered . | . . . Construction Impeded . | . . . Haulers Reinforced . | . . . Active Scanning Responses . | . . . Cargo Convoy Interrupts . | . . . Stealth | -11 -10 -10 --------- Run | Yrd Mat Sub Distress Signals 3 | . 3 . Communications Jammed . | . . . Distress Signals . | . . . Times Spotted 28 | . 15 13 Peak Tracking Total 10 | . 5 10 Tactical Retreats . | . . . Traps | -11 -10 -10 ------- Run | Yrd Mat Sub Traps Triggered 3 | . 3 . Indirectly . | . . . Trap Hack Attempts . | . . . Triggered . | . . . Disarmed . | . . . Reprogrammed . | . . . Reused . | . . . Traps Extracted . | . . . Installed . | . . . Triggered . | . . . Machines | -11 -10 -10 ---------- Run | Yrd Mat Sub Machines Disabled . | . . . Max in Single Turn . | . . . Machines Repaired . | . . . Machines Dismantled . | . . . Machines Sabotaged . | . . . Overloaded Fab Kills . | . . . Hacking | -11 -10 -10 --------- Run | Yrd Mat Sub Machines Accessed 7 | . 7 . Terminals 7 | . 7 . Fabricators . | . . . Repair Stations . | . . . Recycling Units . | . . . Scanalyzers . | . . . Garrison Access . | . . . Total Hacks 32 | . 32 . Successful 17 | . 17 . Failed 15 | . 15 . Catastrophic . | . . . Database Lockouts . | . . . Manual . | . . . Terminals 32 | . 32 . Fabricators . | . . . Repair Stations . | . . . Recycling Units . | . . . Scanalyzers . | . . . Garrison Access . | . . . Terminal Hacks 17 | . 17 . Record 3 | . 3 . Robot Analysis 1 | . 1 . Prototype ID Bank 3 | . 3 . Level Access Points 1 | . 1 . Emergency Access Points 2 | . 2 . Alert Level 3 | . 3 . Unreport Threat 1 | . 1 . Locate Traps 2 | . 2 . Dispatch Records 1 | . 1 . Fabricator Hacks . | . . . Repair Station Hacks . | . . . Recycling Unit Hacks . | . . . Scanalyzer . | . . . Garrison Access Hacks . | . . . Unauthorized Hacks . | . . . Terminals . | . . . Fabricators . | . . . Repair Stations . | . . . Recycling Units . | . . . Scanalyzers . | . . . Garrison Access . | . . . Data Cores Recovered . | . . . Used . | . . . Hacking Detections 5 | . 5 . Full Trace Events 3 | . 3 . Feedback Events 1 | . 1 . Corruption 1 | . 1 . Feedback Blocked . | . . . Robot Schematics Acquired . | . . . Robots Built . | . . . Authchips . | . . . Time . | . . . Total Robot Build Rating . | . . . Part Schematics Acquired . | . . . Parts Built . | . . . Authchips . | . . . Time . | . . . Total Part Build Rating . | . . . Parts Repaired . | . . . Time . | . . . Parts Recycled . | . . . Recycled Matter . | . . . Retrieved Matter . | . . . Retrieved Components . | . . . Parts Scanalyzed . | . . . Part Schematics Acquired . | . . . Parts Damaged . | . . . Bothacking | -11 -10 -10 ------------ Run | Yrd Mat Sub Used RIF Installer . | . . . Robots Hacked . | . . . Non-combat . | . . . Combat . | . . . Robot Hacks Applied . | . . . Relay Couplers Released . | . . . Fabnet Peak Effective % . | . . . Robots Rewired . | . . . Allies Hacked . | . . . Hacks Repelled . | . . . Allies | -11 -10 -10 -------- Run | Yrd Mat Sub Total Allies . | . . . Largest Group . | . . . Highest-Rated Group . | . . . Highest-Rated Ally . | . . . Total Orders . | . . . Ally Attacks . | . . . Total Damage . | . . . Kills . | . . . Allies Corrupted . | . . . Allies Melted . | . . . Intel | -11 -10 -10 ------- Run | Yrd Mat Sub Robot Analysis Total 1 | . 1 . Derelict Logs Recovered 1 | . . 1 Drone Launches . | . . . Drone Recoveries . | . . . Exploration | -11 -10 -10 ------------- Run | Yrd Mat Sub Turns Passed 2142 | 92 1777 273 Spaces Moved 1038 | 46 888 104 Core 18 | 18 . . Treads 1012 | 20 888 104 Legs . | . . . Wheels 8 | 8 . . Hover . | . . . Flight . | . . . Fastest Speed 50 | 50 160 240 Average Speed 180 | 127 175 240 Slowest Speed 250 | 250 240 240 Overloaded Moves . | . . . Propulsion Burnouts . | . . . Robots Hopped . | . . . Cave-ins Triggered . | . . . Exploration Rate (%) 36 | 5 98 6 Regions Visited 2 Branch Regions 1 Pre-discovered Areas . | . . . Known Exits Taken . | . . . Unknown Exits Taken 2 | 1 1 . Scrap Searched . | . . . Spaces Dug . | . . . Terrain Destroyed . | . . . Melee . | . . . Projectile . | . . . AOE . | . . . Terrain Rammed . | . . . Walls Destroyed . | . . . Machines Disabled . | . . . Actions | -11 -10 -10 --------- Run | Yrd Mat Sub Total 1216 | 82 1009 125 Wait 42 | 11 29 2 Move 1036 | 45 887 104 Hop . | . . . Pick Up 45 | 12 25 8 Fast Attach . | . . . Attach 13 | 10 3 . Detach . | . . . Swap 6 | . 4 2 Drop 18 | 4 9 5 Fire 54 | . 50 4 Melee . | . . . Ram . | . . . Kick . | . . . Crush 2 | . 2 . Escape Stasis . | . . . Rewire . | . . . Trap . | . . . Miscellaneous . | . . . Route ------- -11/Scrapyard -10/Materials (discovered 6 exits: *Mat x3 / [*Min x2] / [*Sub]) -10/Subcaves History --------- Turn | Location | Event 6 | -11/Scrapyard | Discovered new exit (range 15) 93 | -11/Scrapyard | Entered Materials 105 | -10/Materials | Discovered new exit (range 9) 133 | -10/Materials | Discovered new exit (range 16) 308 | -10/Materials | Build established: Mutant 352 | -10/Materials | Discovered new exit (range 15) 449 | -10/Materials | Identified exit to Materials 1844 | -10/Materials | Discovered new exit (range 8) 1870 | -10/Materials | Entered Subcaves 1873 | -10/Subcaves | Learned Materials stockpile data 2133 | -10/Subcaves | Ambushed by swarm of Subdwellers 2133 | -10/Subcaves | Ambushed by Subdwellers from Twisted Machinery 2133 | -10/Subcaves | Ambushed by Subdwellers from Twisted Machinery 2133 | -10/Subcaves | Ambushed by Subdwellers from Twisted Machinery 2140 | -10/Subcaves | Core integrity fell below 50% 2143 | -10/Subcaves | Core integrity fell below 20% 2143 | -10/Subcaves | Destroyed by RT-UI1(R) with Subdweller Machine Gun Last Messages --------------- 02134_ HV Slug penetrates 01-M1L(R). 02134_ 01-M1L(R) suffers critical hit (Destroy). 02134_ 01-M1L(R) destroyed. 02136_ SS-S72(R) emerges from the Twisted Machinery. 02136_ U3-B5R(R) emerges from the Twisted Machinery. 02137_ W2-DBQ(R) emerges from the Twisted Machinery. 02137_ Subatomizers dissect the Sub. Monowheel. 02137_ HV Slug penetrates U0-RDT(R). 02137_ U0-RDT(R) suffers critical hit (Destroy). 02137_ U0-RDT(R) destroyed. 02137_ Lgt. Ion Engine destroyed. 02139_ Lgt. Treads destroyed. 02139_ HV Slug penetrates SS-S72(R). 02139_ SS-S72(R) suffers critical hit (Destroy). 02139_ SS-S72(R) knocked back. 02140_ Particle Gun destroyed. 02141_ OU-2IS(R) affixes Scrap Shield Fragment to Scrap Shield. 02142_ SS-S72(R) suffers critical hit (Destroy). 02142_ SS-S72(R) knocked back. 02143_ OU-2IS(R) destroyed. Map ----- +----------------------------------------------------+ | ?????????????????????????????????????????????????? | | ?????????????????????????????????????????????????? | | ?????????????????????????????????????????????????? | | ?????????????????????????????????????????????????? | | ?????????????????????????????????????????????????? | | ?????????????????????????????????????????????????? | | ?????????????????????????????????????????????????? | | ??????????????????????????????????????% ?? ?????? | | ?????????????????????????????????????? #? ?????? | | ???????????????????????????????????### ## ?????? | | ???????????????????????????????????#% ?????? | | ??????????????????????????????????? ????? | | ???????????????????????????????????# ????? | | ?????????????????#????????????????## ## ????? | | ????????????????## ???????????????# ##? #???# | | ?????????????? ## ??????????????# ## #?## | | ?????????????? ????????????## #? # ## | | ???????????????# ?????????#### #??? | | ????????????????# ????##### #??? ## | | ???????????????## ????# ###### #?# | | ????????????? ## ##?# ## ### | | ????????????? # ## [ ## | | ????????????# # [ | | ??????????????# % ## # | | ????????????????# #RRRRR #### ### [#### | | ????????????????###????# @!% ##?## #### #??# | | ??????????????????????# #%R= #??##### !#??# | | ????????????????????????#!Rh ##???### #??? | | ?????????????????????####R%* #???## #### | | ?????????????????????# ##!% ## ###### # # | | ?????????????????????# R #####?# ### | | ?????????????????????# ##?????## ##?# # | | ?????????????????????## ###???????## ##### ### | | ??????????????????????####??????????#####?# ##?? | | ?????????????????????????????????????????# ##??? | | ?????????????????????????????????????????####????? | | ?????????????????????????????????????????????????? | | ?????????????????????????????????????????????????? | | ?????????????????????????????????????????????????? | | ?????????????????????????????????????????????????? | | ?????????????????????????????????????????????????? | | ?????????????????????????????????????????????????? | | ?????????????????????????????????????????????????? | | ?????????????????????????????????????????????????? | | ?????????????????????????????????????????????????? | | ?????????????????????????????????????????????????? | | ?????????????????????????????????????????????????? | | ?????????????????????????????????????????????????? | | ?????????????????????????????????????????????????? | | ?????????????????????????????????????????????????? | +----------------------------------------------------+ Best States ------------- Heat Dissipation 25 Energy Generation 10 Energy Capacity 250 Matter Stores 300 Matter Capacity 300 Sight Range 16 Robot Scan Range 14 Terrain Scan Density 10 Evasion (%) 50 Recoil Reduction 2 Item Schematics ----------------- None Robot Schematics ------------------ None Fabricated ------------ Nothing Alien Tech Used ----------------- None Achievements -------------- None Challenges ------------ None Game ------ Seed HoverSchematicTerminator Manual? 0 Play Time 00:16:13 Cumulative 8.0 hours Start 2024.04.04 @ 08:43:55 End 2024.04.04 @ 09:00:48 Sessions 1 Manual Loads 0 Difficulty Rogue Special Mode None Game No. 12 Rogue 12 Adventurer 0 Explorer 0 Win Type - Total 0 Types 0/0/0/0/0/0/0/0/0 Lore% 16 Gallery% 12 Achievement% 11 Wizard Run 0 Options --------- Layout 0 ASCII 0 Keyboard 0 Movement Numpad Keybinds 0 Fullscreen 1 Font 18/SmallcapsGlow Map View 76x50 Zoom Use 0% Tactical HUD 1 Map Filters NONE Filters NONE Steam 1 RUN: a4c10167-9377-4eab-8fd1-c208a481e492